[Event "*** SCC Grand Prix: Titled Tuesday Blitz"]
[Site "Chess.com"]
[Date "2020.06.09"]
[Round "6"]
[White "amintabatabaei"]
[Black "kushagramohan"]
[Result "1-0"]
[WhiteElo "2883"]
[BlackElo "2726"]
[TimeControl "180+1"]
[EndTime "10:07:27 PDT"]
[Termination "amintabatabaei won by resignation"]

1. c4 {[%clk 0:03:00.9]} 1... Nf6 {[%clk 0:03:00.1]} 2. Nc3 {[%clk 0:03:00.6]}
2... g6 {[%clk 0:03:00.7]} 3. e4 {[%clk 0:03:00.4]} 3... d6 {[%clk 0:03:01.3]}
4. d4 {[%clk 0:03:00.9]} 4... Bg7 {[%clk 0:03:02]} 5. h3 {[%clk 0:03:01.7]} 5...
O-O {[%clk 0:03:02.4]} 6. Be3 {[%clk 0:03:02.4]} 6... c5 {[%clk 0:03:02.9]} 7.
Nf3 {[%clk 0:03:01.9]} 7... cxd4 {[%clk 0:03:02.4]} 8. Nxd4 {[%clk 0:03:02.8]}
8... b6 {[%clk 0:03:03.1]} 9. Qd2 {[%clk 0:02:47.3]} 9... Bb7 {[%clk 0:03:03.4]}
10. f3 {[%clk 0:02:47.5]} 10... Nbd7 {[%clk 0:03:04]} 11. O-O-O {[%clk
0:02:47.5]} 11... Rc8 {[%clk 0:03:04.2]} 12. Kb1 {[%clk 0:02:47.7]} 12... Ne5
{[%clk 0:03:00.4]} 13. b3 {[%clk 0:02:47.7]} 13... a6 {[%clk 0:02:58.9]} 14. Rc1
{[%clk 0:02:43.7]} 14... e6 {[%clk 0:02:49.6]} 15. Bh6 {[%clk 0:02:38.2]} 15...
d5 {[%clk 0:02:47.8]} 16. Bxg7 {[%clk 0:02:34.4]} 16... Kxg7 {[%clk 0:02:47.3]}
17. f4 {[%clk 0:02:05.8]} 17... Nc6 {[%clk 0:02:35.7]} 18. Nxc6 {[%clk
0:01:59.4]} 18... Rxc6 {[%clk 0:02:35.7]} 19. e5 {[%clk 0:01:34.9]} 19... Ne4
{[%clk 0:02:25.3]} 20. Nxe4 {[%clk 0:01:33.9]} 20... dxe4 {[%clk 0:02:25.9]} 21.
Qxd8 {[%clk 0:01:30.6]} 21... Rxd8 {[%clk 0:02:25.6]} 22. Be2 {[%clk 0:01:31.5]}
22... Rd2 {[%clk 0:02:20.5]} 23. Rc2 {[%clk 0:01:31.3]} 23... Rd7 {[%clk
0:02:07.6]} 24. Rd1 {[%clk 0:01:24.9]} 24... Rcc7 {[%clk 0:02:07.5]} 25. Kc1
{[%clk 0:01:11.7]} 25... Kf8 {[%clk 0:01:51.2]} 26. g3 {[%clk 0:00:50.8]} 26...
Ke7 {[%clk 0:01:29]} 27. Rcd2 {[%clk 0:00:49.7]} 27... Rxd2 {[%clk 0:01:02.1]}
28. Kxd2 {[%clk 0:00:50.6]} 28... Rd7+ {[%clk 0:01:02.3]} 29. Ke3 {[%clk
0:00:50.3]} 29... a5 {[%clk 0:00:51]} 30. Rxd7+ {[%clk 0:00:47.9]} 30... Kxd7
{[%clk 0:00:51.1]} 31. a3 {[%clk 0:00:29.3]} 31... Kc6 {[%clk 0:00:30.7]} 32.
Kxe4 {[%clk 0:00:13.9]} 32... Kc5+ {[%clk 0:00:31]} 33. Kd3 {[%clk 0:00:14.4]}
33... h6 {[%clk 0:00:19.2]} 34. Kc3 {[%clk 0:00:14.2]} 34... Bg2 {[%clk
0:00:19]} 35. b4+ {[%clk 0:00:13.8]} 35... axb4+ {[%clk 0:00:19]} 36. axb4+
{[%clk 0:00:14.7]} 36... Kc6 {[%clk 0:00:19.7]} 37. h4 {[%clk 0:00:15.4]} 37...
Be4 {[%clk 0:00:19.9]} 38. Kd4 {[%clk 0:00:14.5]} 38... Bg2 {[%clk 0:00:19.7]}
39. b5+ {[%clk 0:00:13.7]} 39... Kc7 {[%clk 0:00:19.6]} 40. c5 {[%clk
0:00:14.6]} 40... bxc5+ {[%clk 0:00:19.7]} 41. Kxc5 {[%clk 0:00:15.5]} 41... Bb7
{[%clk 0:00:20]} 42. b6+ {[%clk 0:00:15.6]} 42... Kd7 {[%clk 0:00:20.3]} 43.
Bb5+ {[%clk 0:00:16.5]} 43... Kd8 {[%clk 0:00:17.9]} 44. Bc6 {[%clk 0:00:16.7]}
44... Kc8 {[%clk 0:00:18.5]} 45. Bxb7+ {[%clk 0:00:15.1]} 45... Kxb7 {[%clk
0:00:19.4]} 46. Kb5 {[%clk 0:00:15.2]} 46... Kb8 {[%clk 0:00:19.2]} 47. Kc6
{[%clk 0:00:15.5]} 47... Kc8 {[%clk 0:00:19.8]} 48. b7+ {[%clk 0:00:15]} 48...
Kb8 {[%clk 0:00:20.1]} 49. Kb6 {[%clk 0:00:15.2]} 49... h5 {[%clk 0:00:10.8]}
50. Kc6 {[%clk 0:00:14.9]} 1-0

[Event "*** SCC Grand Prix: Titled Tuesday Blitz"]
[Site "Chess.com"]
[Date "2020.06.09"]
[Round "6"]
[White "Natalya_Buksa"]
[Black "Infernal_XaM"]
[Result "0-1"]
[WhiteElo "2573"]
[BlackElo "2766"]
[TimeControl "180+1"]
[EndTime "10:07:29 PDT"]
[Termination "Infernal_XaM won by resignation"]

1. d4 {[%clk 0:03:00.9]} 1... d5 {[%clk 0:02:59.2]} 2. Nc3 {[%clk 0:03:01.3]}
2... c6 {[%clk 0:02:59.7]} 3. Bf4 {[%clk 0:03:01.8]} 3... Bf5 {[%clk 0:02:59.1]}
4. e3 {[%clk 0:03:02.4]} 4... e6 {[%clk 0:02:59.3]} 5. Nf3 {[%clk 0:02:59.9]}
5... Nd7 {[%clk 0:02:58.8]} 6. Qd2 {[%clk 0:02:58.2]} 6... Ngf6 {[%clk
0:02:58.2]} 7. Ne5 {[%clk 0:02:58.6]} 7... Nxe5 {[%clk 0:02:52.8]} 8. Bxe5
{[%clk 0:02:59.5]} 8... b5 {[%clk 0:02:45.5]} 9. f3 {[%clk 0:02:57.2]} 9... Bg6
{[%clk 0:02:43.1]} 10. g4 {[%clk 0:02:51.7]} 10... Bd6 {[%clk 0:02:35.7]} 11. h4
{[%clk 0:02:48.9]} 11... h5 {[%clk 0:02:32.3]} 12. Bxd6 {[%clk 0:02:35.9]} 12...
Qxd6 {[%clk 0:02:27.4]} 13. g5 {[%clk 0:02:36.2]} 13... Nd7 {[%clk 0:02:27.5]}
14. O-O-O {[%clk 0:02:31.3]} 14... b4 {[%clk 0:02:23.6]} 15. Na4 {[%clk
0:02:30]} 15... O-O {[%clk 0:02:21.2]} 16. Bd3 {[%clk 0:02:26.8]} 16... Bxd3
{[%clk 0:02:19.4]} 17. Qxd3 {[%clk 0:02:27.7]} 17... g6 {[%clk 0:02:19.7]} 18.
e4 {[%clk 0:02:25.6]} 18... Qc7 {[%clk 0:02:09.6]} 19. Kb1 {[%clk 0:02:21.3]}
19... a5 {[%clk 0:01:47.8]} 20. c4 {[%clk 0:01:53.7]} 20... dxe4 {[%clk
0:01:28.3]} 21. Qxe4 {[%clk 0:01:33.2]} 21... Rad8 {[%clk 0:01:22.5]} 22. d5
{[%clk 0:01:26.8]} 22... exd5 {[%clk 0:01:12]} 23. cxd5 {[%clk 0:01:26.6]} 23...
Rfe8 {[%clk 0:01:06]} 24. Qd4 {[%clk 0:01:22.6]} 24... cxd5 {[%clk 0:00:49.8]}
25. Qxd5 {[%clk 0:01:21.8]} 25... Ne5 {[%clk 0:00:46.9]} 26. Qc5 {[%clk
0:01:06.2]} 26... Qxc5 {[%clk 0:00:45.5]} 27. Nxc5 {[%clk 0:01:07.1]} 27... Nxf3
{[%clk 0:00:45.8]} 28. Nb7 {[%clk 0:00:59.7]} 28... Rxd1+ {[%clk 0:00:44.2]} 29.
Rxd1 {[%clk 0:00:57.1]} 29... a4 {[%clk 0:00:38.7]} 30. Nc5 {[%clk 0:00:55.5]}
30... Nxh4 {[%clk 0:00:34.8]} 31. Nd7 {[%clk 0:00:38.9]} 31... Kg7 {[%clk
0:00:33.7]} 32. Nf6 {[%clk 0:00:38.8]} 32... Re5 {[%clk 0:00:33]} 33. Rd8 {[%clk
0:00:25.7]} 33... Rxg5 {[%clk 0:00:32]} 34. Ne8+ {[%clk 0:00:26]} 34... Kh6
{[%clk 0:00:32.1]} 35. Nd6 {[%clk 0:00:25.1]} 35... Rg1+ {[%clk 0:00:31.4]} 36.
Kc2 {[%clk 0:00:24.7]} 36... Rf1 {[%clk 0:00:27.4]} 37. Ne4 {[%clk 0:00:18.7]}
37... Nf5 {[%clk 0:00:25.6]} 38. Rb8 {[%clk 0:00:15]} 38... b3+ {[%clk
0:00:24.7]} 39. axb3 {[%clk 0:00:14.7]} 39... axb3+ {[%clk 0:00:24.2]} 40. Kxb3
{[%clk 0:00:14.7]} 40... Kg7 {[%clk 0:00:22.6]} 41. Kc4 {[%clk 0:00:12.7]} 41...
h4 {[%clk 0:00:22]} 42. Ng5 {[%clk 0:00:12.6]} 42... Rg1 {[%clk 0:00:20]} 43.
Nf3 {[%clk 0:00:12.1]} 43... Rg4+ {[%clk 0:00:19.4]} 44. Kc5 {[%clk 0:00:12.2]}
44... h3 {[%clk 0:00:18.8]} 45. Rb7 {[%clk 0:00:06.4]} 45... Rg3 {[%clk
0:00:13.6]} 46. Ne5 {[%clk 0:00:06.1]} 46... Nh6 {[%clk 0:00:13.8]} 47. Rd7
{[%clk 0:00:05]} 47... h2 {[%clk 0:00:13.6]} 48. Rd1 {[%clk 0:00:04.5]} 48...
Rg1 {[%clk 0:00:14]} 49. Rxg1 {[%clk 0:00:01.1]} 0-1

[Event "*** SCC Grand Prix: Titled Tuesday Blitz"]
[Site "Chess.com"]
[Date "2020.06.09"]
[Round "6"]
[White "chenxiaoyuer"]
[Black "gross-aleks"]
[Result "0-1"]
[WhiteElo "2374"]
[BlackElo "2587"]
[TimeControl "180+1"]
[EndTime "10:07:29 PDT"]
[Termination "gross-aleks won by resignation"]

1. e4 {[%clk 0:03:00.9]} 1... e5 {[%clk 0:02:37.6]} 2. Nf3 {[%clk 0:02:59.3]}
2... Nc6 {[%clk 0:02:37.7]} 3. Bb5 {[%clk 0:02:58.8]} 3... Nge7 {[%clk
0:02:34.6]} 4. O-O {[%clk 0:02:50]} 4... g6 {[%clk 0:02:34.2]} 5. c3 {[%clk
0:02:39.9]} 5... Bg7 {[%clk 0:02:33]} 6. d4 {[%clk 0:02:39.5]} 6... a6 {[%clk
0:02:31.2]} 7. Ba4 {[%clk 0:02:34.5]} 7... O-O {[%clk 0:02:24.5]} 8. d5 {[%clk
0:02:11.7]} 8... Nb8 {[%clk 0:02:21.8]} 9. d6 {[%clk 0:01:59.1]} 9... Nec6
{[%clk 0:02:21.1]} 10. Bg5 {[%clk 0:01:35.9]} 10... f6 {[%clk 0:02:18.5]} 11.
Be3 {[%clk 0:01:35]} 11... Re8 {[%clk 0:02:10.9]} 12. Bb3+ {[%clk 0:01:27.3]}
12... Kh8 {[%clk 0:02:10]} 13. Bc5 {[%clk 0:01:25.6]} 13... Bf8 {[%clk
0:02:02.6]} 14. dxc7 {[%clk 0:00:51]} 14... Qxc7 {[%clk 0:02:01.4]} 15. Qd5
{[%clk 0:00:22.9]} 15... Bxc5 {[%clk 0:01:59.9]} 16. Qxc5 {[%clk 0:00:21.2]}
16... d6 {[%clk 0:01:59.1]} 17. Qd5 {[%clk 0:00:19.6]} 17... Be6 {[%clk
0:01:57.3]} 18. Qd3 {[%clk 0:00:19.3]} 18... Nd7 {[%clk 0:01:51.8]} 19. Bxe6
{[%clk 0:00:17.8]} 19... Rxe6 {[%clk 0:01:51.2]} 20. Na3 {[%clk 0:00:17.6]}
20... Nc5 {[%clk 0:01:49.9]} 21. Qe2 {[%clk 0:00:17.1]} 21... Ne7 {[%clk
0:01:40.8]} 22. Nc2 {[%clk 0:00:15.4]} 22... d5 {[%clk 0:01:38.4]} 23. exd5
{[%clk 0:00:15]} 23... Nxd5 {[%clk 0:01:38]} 24. Rad1 {[%clk 0:00:14.9]} 24...
Nf4 {[%clk 0:01:28.2]} 25. Qe3 {[%clk 0:00:14.1]} 25... g5 {[%clk 0:00:58.9]}
26. g3 {[%clk 0:00:13]} 26... Ng6 {[%clk 0:00:58.8]} 27. Nb4 {[%clk 0:00:11.3]}
27... Rae8 {[%clk 0:00:51.4]} 28. Nd5 {[%clk 0:00:10.7]} 28... Qc8 {[%clk
0:00:50]} 29. b3 {[%clk 0:00:09.4]} 29... g4 {[%clk 0:00:43.4]} 30. Nd2 {[%clk
0:00:09.2]} 30... f5 {[%clk 0:00:43.1]} 31. Nc4 {[%clk 0:00:09]} 31... b5 {[%clk
0:00:36.6]} 32. Na5 {[%clk 0:00:08.1]} 32... f4 {[%clk 0:00:31.3]} 33. Qe2
{[%clk 0:00:07.7]} 33... Rd6 {[%clk 0:00:21.3]} 34. c4 {[%clk 0:00:06.2]} 34...
Red8 {[%clk 0:00:18.3]} 35. Nc3 {[%clk 0:00:04.9]} 35... f3 {[%clk 0:00:16.9]}
36. Qe3 {[%clk 0:00:04.1]} 36... Rxd1 {[%clk 0:00:16.5]} 37. Rxd1 {[%clk
0:00:04.3]} 37... Rxd1+ {[%clk 0:00:16.9]} 38. Nxd1 {[%clk 0:00:04.7]} 38...
bxc4 {[%clk 0:00:16.9]} 39. Nxc4 {[%clk 0:00:04.6]} 39... Qc7 {[%clk 0:00:15.6]}
40. Nc3 {[%clk 0:00:04.7]} 40... Ne6 {[%clk 0:00:15.6]} 41. Kf1 {[%clk
0:00:04.3]} 41... Nd4 {[%clk 0:00:14.9]} 42. Qe4 {[%clk 0:00:03.8]} 42... Qd7
{[%clk 0:00:11.9]} 43. Ke1 {[%clk 0:00:03.6]} 43... Nb5 {[%clk 0:00:10.1]} 44.
Nxe5 {[%clk 0:00:03.2]} 44... Nxc3 {[%clk 0:00:09]} 45. Nxg6+ {[%clk 0:00:02.2]}
45... hxg6 {[%clk 0:00:09]} 46. Qe5+ {[%clk 0:00:02.4]} 46... Qg7 {[%clk
0:00:09.9]} 47. Qb8+ {[%clk 0:00:02.2]} 47... Kh7 {[%clk 0:00:10.1]} 48. Qf4
{[%clk 0:00:02.5]} 48... Qe7+ {[%clk 0:00:09.7]} 49. Qe3 {[%clk 0:00:02.6]}
49... Ne4 {[%clk 0:00:10.6]} 0-1

[Event "*** SCC Grand Prix: Titled Tuesday Blitz"]
[Site "Chess.com"]
[Date "2020.06.09"]
[Round "6"]
[White "Vesper2018"]
[Black "AliKa2810"]
[Result "1-0"]
[WhiteElo "2428"]
[BlackElo "2578"]
[TimeControl "180+1"]
[EndTime "10:07:32 PDT"]
[Termination "Vesper2018 won by checkmate"]

1. e4 {[%clk 0:03:00.9]} 1... e5 {[%clk 0:02:59]} 2. Nf3 {[%clk 0:02:59.9]} 2...
Nf6 {[%clk 0:02:59.7]} 3. Nxe5 {[%clk 0:02:58.2]} 3... d6 {[%clk 0:02:59.2]} 4.
Nf3 {[%clk 0:02:58.1]} 4... Nxe4 {[%clk 0:02:59.8]} 5. Nc3 {[%clk 0:02:57.2]}
5... Nxc3 {[%clk 0:02:59.9]} 6. dxc3 {[%clk 0:02:57.4]} 6... Be7 {[%clk
0:03:00.5]} 7. Be3 {[%clk 0:02:54.6]} 7... Nc6 {[%clk 0:02:59.1]} 8. Qd2 {[%clk
0:02:52.4]} 8... Be6 {[%clk 0:02:59.7]} 9. O-O-O {[%clk 0:02:52]} 9... Qd7
{[%clk 0:03:00.6]} 10. h3 {[%clk 0:02:49.2]} 10... a6 {[%clk 0:02:59.4]} 11. g4
{[%clk 0:02:48]} 11... O-O-O {[%clk 0:02:52.5]} 12. Bg2 {[%clk 0:02:43.1]} 12...
h6 {[%clk 0:02:36.1]} 13. Nd4 {[%clk 0:02:40.5]} 13... Nxd4 {[%clk 0:02:23.8]}
14. cxd4 {[%clk 0:02:40.1]} 14... d5 {[%clk 0:02:18.9]} 15. f4 {[%clk
0:02:16.4]} 15... f5 {[%clk 0:02:18.5]} 16. g5 {[%clk 0:02:14.1]} 16... hxg5
{[%clk 0:01:59.6]} 17. fxg5 {[%clk 0:02:14.2]} 17... Bd6 {[%clk 0:02:00.1]} 18.
h4 {[%clk 0:02:04.3]} 18... Qa4 {[%clk 0:01:29.4]} 19. Kb1 {[%clk 0:02:00.3]}
19... f4 {[%clk 0:01:27]} 20. Bxf4 {[%clk 0:01:53.5]} 20... Bf5 {[%clk
0:01:11.3]} 21. Rhf1 {[%clk 0:01:39.3]} 21... Bg4 {[%clk 0:01:01.2]} 22. Rde1
{[%clk 0:01:33.3]} 22... Bb4 {[%clk 0:00:40.7]} 23. c3 {[%clk 0:01:28.4]} 23...
Ba5 {[%clk 0:00:37.5]} 24. Re7 {[%clk 0:01:05.2]} 24... Rxh4 {[%clk 0:00:36.7]}
25. Rxg7 {[%clk 0:00:49.6]} 25... Bf5+ {[%clk 0:00:36.2]} 26. Ka1 {[%clk
0:00:49.4]} 26... Bc2 {[%clk 0:00:35.1]} 27. b4 {[%clk 0:00:28.2]} 27... Bb6
{[%clk 0:00:29.3]} 28. Kb2 {[%clk 0:00:26]} 28... Be4 {[%clk 0:00:25.3]} 29.
Bxe4 {[%clk 0:00:25.2]} 29... dxe4 {[%clk 0:00:26.2]} 30. g6 {[%clk 0:00:20.6]}
30... Rh3 {[%clk 0:00:26.3]} 31. Be3 {[%clk 0:00:18]} 31... Rdh8 {[%clk
0:00:22.4]} 32. Rgf7 {[%clk 0:00:16.6]} 32... Rh2 {[%clk 0:00:14.5]} 33. Rf8+
{[%clk 0:00:14.8]} 33... Kd7 {[%clk 0:00:14.8]} 34. R1f7+ {[%clk 0:00:13.3]}
34... Ke6 {[%clk 0:00:13.6]} 35. Rf2 {[%clk 0:00:12.5]} 35... Rxf2 {[%clk
0:00:12.6]} 36. Rxf2 {[%clk 0:00:11.4]} 36... Rg8 {[%clk 0:00:11.7]} 37. Rg2
{[%clk 0:00:11.5]} 37... Qb5 {[%clk 0:00:10.4]} 38. g7 {[%clk 0:00:11.3]} 38...
Qf5 {[%clk 0:00:09.9]} 39. Bh6 {[%clk 0:00:10.1]} 39... Qf3 {[%clk 0:00:06.1]}
40. Rf2 {[%clk 0:00:09.4]} 40... Qg3 {[%clk 0:00:04.4]} 41. Rf8 {[%clk
0:00:09.1]} 41... e3 {[%clk 0:00:04.1]} 42. Qe2 {[%clk 0:00:06]} 42... Rxg7
{[%clk 0:00:04.1]} 43. Bxg7 {[%clk 0:00:06.1]} 43... Qxg7 {[%clk 0:00:04.3]} 44.
Qxe3+ {[%clk 0:00:06.7]} 44... Kd6 {[%clk 0:00:04.2]} 45. Rd8+ {[%clk
0:00:06.7]} 45... Kc6 {[%clk 0:00:04.7]} 46. Qe6+ {[%clk 0:00:06.9]} 46... Kb5
{[%clk 0:00:04.9]} 47. Kb3 {[%clk 0:00:06.3]} 47... a5 {[%clk 0:00:01.9]} 48.
a4+ {[%clk 0:00:06.1]} 48... Ka6 {[%clk 0:00:01.9]} 49. Ra8# {[%clk 0:00:06]}
1-0

[Event "*** SCC Grand Prix: Titled Tuesday Blitz"]
[Site "Chess.com"]
[Date "2020.06.09"]
[Round "6"]
[White "KobyKalavannan"]
[Black "Iball95"]
[Result "1/2-1/2"]
[WhiteElo "2522"]
[BlackElo "2678"]
[TimeControl "180+1"]
[EndTime "10:07:36 PDT"]
[Termination "Game drawn - insufficient material"]

1. d4 {[%clk 0:03:00.9]} 1... Nf6 {[%clk 0:02:51.8]} 2. c4 {[%clk 0:03:00.9]}
2... d6 {[%clk 0:02:52]} 3. Nf3 {[%clk 0:03:00.9]} 3... g6 {[%clk 0:02:51.3]} 4.
Nc3 {[%clk 0:03:00.6]} 4... Bf5 {[%clk 0:02:51.3]} 5. g3 {[%clk 0:02:44.3]} 5...
Bg7 {[%clk 0:02:51.1]} 6. Bg2 {[%clk 0:02:44.6]} 6... O-O {[%clk 0:02:50.9]} 7.
O-O {[%clk 0:02:45.1]} 7... Ne4 {[%clk 0:02:51.2]} 8. Nh4 {[%clk 0:02:42]} 8...
Nxc3 {[%clk 0:02:50]} 9. bxc3 {[%clk 0:02:42.7]} 9... Bc8 {[%clk 0:02:50.2]} 10.
Rb1 {[%clk 0:02:41.8]} 10... c5 {[%clk 0:02:46.6]} 11. Bxb7 {[%clk 0:02:35]}
11... Bxb7 {[%clk 0:02:47.5]} 12. Rxb7 {[%clk 0:02:35.9]} 12... Qc8 {[%clk
0:02:46.2]} 13. Rxe7 {[%clk 0:02:06.8]} 13... cxd4 {[%clk 0:02:46]} 14. cxd4
{[%clk 0:02:05.4]} 14... Qxc4 {[%clk 0:02:46.3]} 15. Bf4 {[%clk 0:01:55.6]}
15... Nc6 {[%clk 0:02:40.6]} 16. Rc7 {[%clk 0:01:52.1]} 16... Rfc8 {[%clk
0:02:38]} 17. Rxc8+ {[%clk 0:01:48.9]} 17... Rxc8 {[%clk 0:02:38.9]} 18. Nf3
{[%clk 0:01:42.2]} 18... Nxd4 {[%clk 0:02:17.5]} 19. Nxd4 {[%clk 0:01:41.2]}
19... Bxd4 {[%clk 0:02:18.4]} 20. Qd2 {[%clk 0:00:45.2]} 20... d5 {[%clk
0:01:23.2]} 21. Rc1 {[%clk 0:00:37.6]} 21... Qxc1+ {[%clk 0:01:17.4]} 22. Qxc1
{[%clk 0:00:38.5]} 22... Rxc1+ {[%clk 0:01:18.3]} 23. Bxc1 {[%clk 0:00:39.4]}
23... f5 {[%clk 0:01:18.8]} 24. e3 {[%clk 0:00:39.1]} 24... Bc5 {[%clk
0:01:16.2]} 25. Kf1 {[%clk 0:00:39.4]} 25... Kf7 {[%clk 0:01:12.6]} 26. Bb2
{[%clk 0:00:38.8]} 26... Ke6 {[%clk 0:01:09.9]} 27. Ke2 {[%clk 0:00:39.2]} 27...
a6 {[%clk 0:01:05.8]} 28. Kd3 {[%clk 0:00:39.6]} 28... Bb4 {[%clk 0:01:05.5]}
29. f3 {[%clk 0:00:39.2]} 29... Kd6 {[%clk 0:01:05.1]} 30. Bg7 {[%clk
0:00:33.2]} 30... Kc6 {[%clk 0:01:04.5]} 31. h3 {[%clk 0:00:30.7]} 31... Bd6
{[%clk 0:01:02]} 32. g4 {[%clk 0:00:30.7]} 32... Kb5 {[%clk 0:01:02]} 33. gxf5
{[%clk 0:00:28.1]} 33... gxf5 {[%clk 0:01:02.9]} 34. e4 {[%clk 0:00:26.6]} 34...
dxe4+ {[%clk 0:01:00.7]} 35. fxe4 {[%clk 0:00:27.5]} 35... fxe4+ {[%clk
0:00:48.8]} 36. Kxe4 {[%clk 0:00:28.4]} 36... Kc4 {[%clk 0:00:49.7]} 37. Kf5
{[%clk 0:00:28.1]} 37... Bb4 {[%clk 0:00:42.1]} 38. Bb2 {[%clk 0:00:24.4]} 38...
a5 {[%clk 0:00:36.9]} 39. Kg5 {[%clk 0:00:20.6]} 39... Bd2+ {[%clk 0:00:35.1]}
40. Kf6 {[%clk 0:00:09]} 40... Bc3+ {[%clk 0:00:08.7]} 41. Bxc3 {[%clk
0:00:09.4]} 41... Kxc3 {[%clk 0:00:09.6]} 42. h4 {[%clk 0:00:10.3]} 42... a4
{[%clk 0:00:07.5]} 43. h5 {[%clk 0:00:10.7]} 43... a3 {[%clk 0:00:07.2]} 44. h6
{[%clk 0:00:11.3]} 44... Kb2 {[%clk 0:00:07.5]} 45. Kg7 {[%clk 0:00:12.2]} 45...
Kxa2 {[%clk 0:00:08]} 46. Kxh7 {[%clk 0:00:13.1]} 46... Kb3 {[%clk 0:00:06.5]}
47. Kg8 {[%clk 0:00:14]} 47... a2 {[%clk 0:00:07.4]} 48. h7 {[%clk 0:00:14.9]}
48... a1=Q {[%clk 0:00:08.1]} 49. h8=Q {[%clk 0:00:15.8]} 49... Qxh8+ {[%clk
0:00:08.6]} 50. Kxh8 {[%clk 0:00:16.7]} 1/2-1/2

[Event "*** SCC Grand Prix: Titled Tuesday Blitz"]
[Site "Chess.com"]
[Date "2020.06.09"]
[Round "6"]
[White "Efremov_Vlad"]
[Black "zajka-molotok"]
[Result "0-1"]
[WhiteElo "2168"]
[BlackElo "2385"]
[TimeControl "180+1"]
[EndTime "10:07:36 PDT"]
[Termination "zajka-molotok won on time"]

1. d4 {[%clk 0:03:00.9]} 1... d5 {[%clk 0:02:58.3]} 2. c4 {[%clk 0:03:00.4]}
2... c6 {[%clk 0:02:58.6]} 3. Nf3 {[%clk 0:03:00.4]} 3... Nf6 {[%clk 0:02:58.1]}
4. Qb3 {[%clk 0:03:00.4]} 4... e6 {[%clk 0:02:43.4]} 5. Bg5 {[%clk 0:02:59.1]}
5... h6 {[%clk 0:02:39.7]} 6. Bxf6 {[%clk 0:02:49.4]} 6... Qxf6 {[%clk
0:02:39.1]} 7. Nc3 {[%clk 0:02:46.8]} 7... Bd6 {[%clk 0:02:34.7]} 8. e3 {[%clk
0:02:45.4]} 8... O-O {[%clk 0:02:33.2]} 9. Bd3 {[%clk 0:02:44.7]} 9... Nd7
{[%clk 0:02:31.6]} 10. O-O {[%clk 0:02:26]} 10... Qe7 {[%clk 0:02:22.3]} 11. e4
{[%clk 0:02:23.6]} 11... dxc4 {[%clk 0:02:20.4]} 12. Bxc4 {[%clk 0:02:21.7]}
12... e5 {[%clk 0:02:21]} 13. d5 {[%clk 0:02:19.5]} 13... Nb6 {[%clk 0:02:01.1]}
14. dxc6 {[%clk 0:02:04.8]} 14... bxc6 {[%clk 0:01:58.9]} 15. Be2 {[%clk
0:02:03.6]} 15... Be6 {[%clk 0:01:56.1]} 16. Qc2 {[%clk 0:02:03.7]} 16... Rac8
{[%clk 0:01:50.1]} 17. Na4 {[%clk 0:01:55.7]} 17... Nxa4 {[%clk 0:01:27.6]} 18.
Qxa4 {[%clk 0:01:54.6]} 18... Bg4 {[%clk 0:01:15.1]} 19. h3 {[%clk 0:01:44.3]}
19... Bh5 {[%clk 0:01:14.2]} 20. Rac1 {[%clk 0:01:32.7]} 20... Bc5 {[%clk
0:01:07.7]} 21. Qc4 {[%clk 0:01:28.3]} 21... Bb6 {[%clk 0:01:05.7]} 22. Nd2
{[%clk 0:01:21.7]} 22... Bg6 {[%clk 0:01:01]} 23. Nb3 {[%clk 0:01:19.8]} 23...
Kh8 {[%clk 0:00:54.8]} 24. a4 {[%clk 0:01:13.8]} 24... f5 {[%clk 0:00:51.9]} 25.
a5 {[%clk 0:01:11.2]} 25... Bd8 {[%clk 0:00:33.4]} 26. exf5 {[%clk 0:01:09.9]}
26... Bxf5 {[%clk 0:00:32.9]} 27. Bg4 {[%clk 0:01:00.4]} 27... Qg5 {[%clk
0:00:29.2]} 28. Bxf5 {[%clk 0:00:58.6]} 28... Qxf5 {[%clk 0:00:29.7]} 29. Qa6
{[%clk 0:00:49.1]} 29... Bh4 {[%clk 0:00:27.9]} 30. Qe2 {[%clk 0:00:31.6]} 30...
e4 {[%clk 0:00:23.8]} 31. Nc5 {[%clk 0:00:31.1]} 31... Rce8 {[%clk 0:00:22.2]}
32. Rc4 {[%clk 0:00:16.3]} 32... e3 {[%clk 0:00:15.4]} 33. Rxh4 {[%clk
0:00:14.2]} 33... exf2+ {[%clk 0:00:14.9]} 34. Qxf2 {[%clk 0:00:14.3]} 34...
Qxf2+ {[%clk 0:00:13.5]} 35. Rxf2 {[%clk 0:00:14.3]} 35... Re1+ {[%clk
0:00:14.1]} 36. Kh2 {[%clk 0:00:13.4]} 36... Rxf2 {[%clk 0:00:14.6]} 37. Rd4
{[%clk 0:00:11.3]} 37... Rf5 {[%clk 0:00:13.8]} 38. Nb7 {[%clk 0:00:10.3]} 38...
Re7 {[%clk 0:00:12.4]} 39. Rd8+ {[%clk 0:00:09.3]} 39... Kh7 {[%clk 0:00:12.2]}
40. a6 {[%clk 0:00:09.5]} 40... Rb5 {[%clk 0:00:11]} 41. Ra8 {[%clk 0:00:07.3]}
41... Rxb2 {[%clk 0:00:10.7]} 42. Rxa7 {[%clk 0:00:07.3]} 42... Ra2 {[%clk
0:00:10.6]} 43. Ra8 {[%clk 0:00:07.4]} 43... Rd7 {[%clk 0:00:08.6]} 44. Nc5
{[%clk 0:00:07.4]} 44... Re7 {[%clk 0:00:08.2]} 45. Nb7 {[%clk 0:00:06.6]} 45...
h5 {[%clk 0:00:08.5]} 46. Nc5 {[%clk 0:00:06.6]} 46... h4 {[%clk 0:00:08.3]} 47.
Rb8 {[%clk 0:00:06.1]} 47... Ree2 {[%clk 0:00:07.4]} 48. Rb7 {[%clk 0:00:04.3]}
48... Rxg2+ {[%clk 0:00:07.5]} 49. Kh1 {[%clk 0:00:04.8]} 49... Rgc2 {[%clk
0:00:07.2]} 0-1